Workbook

Sheet NSU
B1: Emmi Laine | E1: 11.4.1995 Ilmajoki
B2: SUPERPESIS | E2: Runkosarja | I2: Kärkilyönnit (KL), pesänvälit | Q2: Runkosarja | U2: Ylempi loppusarja | Z2: Alempi loppusarja | AG2: Arvo-ottelut ja mitalit
B3: Vuosi | C3: Sija | D3: Seura | E3: OTT | F3: KUN | G3: LÖI | H3: TOI | I3: KL | J3: 0 > 1 | K3: 1 > 2 | L3: 2 > 3 | M3: 3 > k | N3: KL-% | P3: LÖI | Q3: TOI | R3: L+T | S3: KL | U3: OTT | V3: KUN | W3: LÖI | X3: TOI | Y3: KL | Z3: OTT | AA3: KUN | AB3: LÖI | AC3: TOI | AD3: KL | AE3: IL | AF3: LL | AG3: Halli | AH3: K | AI3: H | AJ3: P
B4: 2012 | D4: SMJ | F4: suomensarja
B5: 2013 | D5: SMJ 2 | F5: suomensarja
B6: 2013 | D6: SMJ | F6: ykköspesis | Z6: 4 | AA6: 0 | AB6: 1 | AC6: 3 | AD6: 19
B7: 2014 | D7: SMJ | F7: ykköspesis | Z7: 3 | AA7: 0 | AB7: 0 | AC7: 0 | AD7: 10
B8: 2015 | C8: 10. | D8: SMJ | E8: 22 | F8: 0 | G8: 1 | H8: 7 | I8: 61 | J8: 44 | K8: 9 | L8: 7 | M8: 1 | N8: 44.9 % | O8: 136
B9: 2016 | C9: 6. | D9: SMJ | E9: 22 | F9: 1 | G9: 6 | H9: 10 | I9: 51 | J9: 30 | K9: 11 | L9: 3 | M9: 7 | N9: 44.0 % | O9: 116 | U9: 3 | V9: 0 | W9: 0 | X9: 0 | Y9: 5
B10: 2017 | C10: 8. | D10: SMJ | E10: 26 | F10: 0 | G10: 7 | H10: 15 | I10: 87 | J10: 28 | K10: 24 | L10: 28 | M10: 7 | N10: 52.1 % | O10: 167 | U10: 4 | V10: 0 | W10: 1 | X10: 2 | Y10: 15
B11: 2018 | C11: 4. | D11: Virkiä | E11: 26 | F11: 1 | G11: 6 | H11: 6 | I11: 64 | J11: 18 | K11: 17 | L11: 22 | M11: 7 | N11: 50.8 % | O11: 126 | U11: 10 | V11: 0 | W11: 2 | X11: 2 | Y11: 23
B12: 2019 | C12: 3. | D12: Virkiä | E12: 24 | F12: 5 | G12: 11 | H12: 15 | I12: 71 | J12: 8 | K12: 22 | L12: 25 | M12: 16 | N12: 50.7 % | O12: 140 | U12: 8 | V12: 0 | W12: 3 | X12: 4 | Y12: 21 | AJ12: 1
B13: 2020 | C13: 4. | D13: Virkiä | E13: 20 | F13: 1 | G13: 14 | H13: 13 | I13: 72 | J13: 12 | K13: 16 | L13: 29 | M13: 15 | N13: 64.9 % | O13: 111 | U13: 8 | V13: 0 | W13: 6 | X13: 5 | Y13: 25
B14: 2021 | C14: 4. | D14: Virkiä | E14: 24 | F14: 2 | G14: 12 | H14: 16 | I14: 90 | J14: 3 | K14: 22 | L14: 51 | M14: 14 | N14: 57.3 % | O14: 157 | U14: 10 | V14: 0 | W14: 4 | X14: 0 | Y14: 34
B15: 2022 | C15: 4. | D15: Virkiä | E15: 24 | F15: 0 | G15: 8 | H15: 8 | I15: 88 | J15: 3 | K15: 18 | L15: 59 | M15: 8 | N15: 62.4 % | O15: 141 | U15: 11 | V15: 1 | W15: 11 | X15: 2 | Y15: 37 | AJ15: 1
B16: Yhteensä | E16: =SUM(E4:E15) -> 188 | F16: 10 | G16: 65 | H16: 90 | I16: 584 | J16: 146 | K16: 139 | L16: =SUM(L4:L15) -> 224 | M16: 75 | N16: =PRODUCT(I16/O16) -> 53.4 % | O16: =SUM(O4:O15) -> 1094 | U16: 54 | V16: 1 | W16: 27 | X16: 15 | Y16: 160 | Z16: 7 | AA16: 0 | AB16: 1 | AC16: 3 | AD16: 29 | AE16: 0 | AF16: 0 | AG16: 0 | AH16: 0 | AI16: 0 | AJ16: 2
B17: Pesispörssi | D17: =SUM(F16:H16)+((I16-F16-G16)/3)+(E16/3)+(AE16*25)+(AF16*25)+(AG16*10)+(AH16*25)+(AI16*20)+(AJ16*15) -> 427.3
B19: URA SUPERISSA | E19: OTT | F19: KUN | G19: LÖI | H19: TOI | I19: KL | K19: ka/L | L19: ka/T | M19: ka/KL | N19: K - % | P19: ENSIMMÄISET
B20: Runkosarja | E20: =PRODUCT(E16) -> 188 | F20: =PRODUCT(F16) -> 10 | G20: =PRODUCT(G16) -> 65 | H20: =PRODUCT(H16) -> 90 | I20: =PRODUCT(I16) -> 584 | K20: =PRODUCT((F20+G20)/E20) -> 0.40 | L20: =PRODUCT(H20/E20) -> 0.48 | M20: =PRODUCT(I20/E20) -> 3.11 | N20: =PRODUCT(N16) -> 53.4 % | O20: =PRODUCT(O16) -> 1094 | P20: Ottelu | R20: 24.08. 2013 ViU - SMJ 1-2 (3-1, 3-4, 0-0, 2-3) | AB20: 1. ottelu | AD20: 18 v 4 kk 13 pv
B21: Ylempi loppusarja | E21: =PRODUCT(U16) -> 54 | F21: =PRODUCT(V16) -> 1 | G21: 27 | H21: 15 | I21: 160 | K21: =PRODUCT((F21+G21)/E21) -> 0.52 | L21: =PRODUCT(H21/E21) -> 0.28 | M21: =PRODUCT(I21/E21) -> 2.96 | N21: =PRODUCT(I21/O21) -> 52.1 % | O21: 307 | P21: Lyöty | R21: 31.08. 2013 SMJ - ViU 0-2 (3-4, 0-10) | AB21: 4. ottelu | AD21: 18 v 4 kk 20 pv
B22: Alempi loppusarja | E22: =PRODUCT(Z16) -> 7 | F22: =PRODUCT(AA16) -> 0 | G22: =PRODUCT(AB16) -> 1 | H22: =PRODUCT(AC16) -> 3 | I22: =PRODUCT(AD16) -> 29 | K22: =PRODUCT((F22+G22)/E22) -> 0.14 | L22: =PRODUCT(H22/E22) -> 0.43 | M22: =PRODUCT(I22/E22) -> 4.14 | N22: =PRODUCT(I22/O22) -> 69.0 % | O22: 42 | P22: Tuotu | R22: 24.08. 2013 ViU - SMJ 1-2 (3-1, 3-4, 0-0, 2-3) | AB22: 1. ottelu | AD22: 18 v 4 kk 13 pv
B23: KAIKKI | E23: =SUM(E20:E22) -> 249 | F23: =SUM(F20:F22) -> 11 | G23: =SUM(G20:G22) -> 93 | H23: =SUM(H20:H22) -> 108 | I23: =SUM(I20:I22) -> 773 | K23: =PRODUCT((F23+G23)/E23) -> 0.42 | L23: =PRODUCT(H23/E23) -> 0.43 | M23: =PRODUCT(I23/E23) -> 3.10 | N23: =PRODUCT(I23/O23) -> 53.6 % | O23: =SUM(O20:O22) -> 1443 | P23: Kunnari | R23: 17.07. 2016 SMJ - ViPa 2-0 (8-0, 7-1) | AB23: 35. ottelu | AD23: 21 v 3 kk 6 pv
B25: Seurat | D25: IK = Ilmajoen Kisailijat (1921), kasvattajaseura
D26: SMJ = Seinäjoen Maila-Jussit (1932)
D27: Virkiä = Lapuan Virkiä (1909)

Sheet Arvo-ottelut
B1: ITÄ - LÄNSI - KORTTI
B2: Emmi Laine | C2: 11.4.1995 Ilmajoki
B3: B-TYTÖT | C3: Itä - Länsi, tulos | D3: Joukkue | E3: Seura | G3: V | H3: T | I3: H | J3: Up. | K3: Lj. | L3: Palk. | M3: O | N3: K | O3: L | P3: T | Q3: KL | R3: 1 | S3: 2 | T3: 3 | U3: k | V3: KL-% | W3: Pelinjohtaja | X3: Yleisöä
B4: 19.07. 2014 Seinäjoki | C4: 0-2 (3-11, 2-4) | D4: Länsi | E4: SMJ | G4: 1 | J4: 3k | K4: 1 | M4: 1 | P4: 2 | Q4: 4/5 | R4: 1/1 | S4: 3/4 | V4: 80.0 % | W4: Sami Österlund | X4: 1682
